[Event "Titled Tuesday Blitz October 18 Late 2022"]
[White "Storey, Charles H"]
[Black "Iliaguev, Nisim"]
[WhiteFideId "406686"]
[BlackFideId "2817276"]
[WhiteElo "2447"]
[BlackElo "2740"]
[Result "1-0"]
[Round "02"]
[TimeControl "180+1"]
[Date "2022.10.19"]
[WhiteClock "0:00:35"]
[BlackClock "0:00:16"]

1. c4 {[%clk 0:03:00]}  e5 {[%clk 0:02:55]} 2. g3 {[%clk 0:03:01]}  Nf6 {[%clk 0:02:53]} 3. Bg2 {[%clk 0:03:01]}  Bc5 {[%clk 0:02:50]} 4. d3 {[%clk 0:02:57]}  c6 {[%clk 0:02:47]} 5. Nc3 {[%clk 0:02:56]}  O-O {[%clk 0:02:45]} 6. Nf3 {[%clk 0:02:54]}  Re8 {[%clk 0:02:43]} 7. O-O {[%clk 0:02:48]}  d6 {[%clk 0:02:36]} 8. Na4 {[%clk 0:02:45]}  Nbd7 {[%clk 0:02:29]} 9. Nxc5 {[%clk 0:02:44]}  Nxc5 {[%clk 0:02:30]} 10. b4 {[%clk 0:02:43]}  Ne6 {[%clk 0:02:28]} 11. Bb2 {[%clk 0:02:42]}  a5 {[%clk 0:02:27]} 12. b5 {[%clk 0:02:39]}  cxb5 {[%clk 0:02:21]} 13. cxb5 {[%clk 0:02:39]}  a4 {[%clk 0:02:22]} 14. Ba3 {[%clk 0:02:36]}  Qb6 {[%clk 0:02:12]} 15. Rb1 {[%clk 0:02:33]}  Nc5 {[%clk 0:02:07]} 16. Nd2 {[%clk 0:02:31]}  Be6 {[%clk 0:02:06]} 17. Nc4 {[%clk 0:02:25]}  Bxc4 {[%clk 0:02:06]} 18. dxc4 {[%clk 0:02:26]}  e4 {[%clk 0:02:07]} 19. Qd4 {[%clk 0:02:22]}  Rad8 {[%clk 0:01:55]} 20. Rfd1 {[%clk 0:02:21]}  h5 {[%clk 0:01:41]} 21. e3 {[%clk 0:02:13]}  Ng4 {[%clk 0:01:30]} 22. Bb2 {[%clk 0:02:06]}  Ne5 {[%clk 0:01:21]} 23. Bxe4 {[%clk 0:01:40]}  a3 {[%clk 0:01:06]} 24. Ba1 {[%clk 0:01:39]}  Qc7 {[%clk 0:00:53]} 25. Bd5 {[%clk 0:01:38]}  Ne6 {[%clk 0:00:49]} 26. Qh4 {[%clk 0:01:30]}  g6 {[%clk 0:00:32]} 27. Qf6 {[%clk 0:01:12]}  Qe7 {[%clk 0:00:25]} 28. Bxe5 {[%clk 0:01:03]}  dxe5 {[%clk 0:00:22]} 29. Qxe7 {[%clk 0:01:02]}  Rxe7 {[%clk 0:00:23]} 30. Bxe6 {[%clk 0:01:02]}  Rxd1+ {[%clk 0:00:22]} 31. Rxd1 {[%clk 0:01:00]}  Rxe6 {[%clk 0:00:20]} 32. Rd3 {[%clk 0:00:51]}  e4 {[%clk 0:00:17]} 33. Rxa3 {[%clk 0:00:51]}  b6 {[%clk 0:00:17]} 34. Ra6 {[%clk 0:00:49]}  Rd6 {[%clk 0:00:18]} 35. Kg2 {[%clk 0:00:45]}  g5 {[%clk 0:00:18]} 36. a4 {[%clk 0:00:44]}  h4 {[%clk 0:00:17]} 37. a5 {[%clk 0:00:41]}  g4 {[%clk 0:00:16]} 38. gxh4 {[%clk 0:00:41]}  f5 {[%clk 0:00:15]} 39. axb6 {[%clk 0:00:37]}  f4 {[%clk 0:00:15]} 40. exf4 {[%clk 0:00:36]}  Rd2 {[%clk 0:00:16]} 41. b7 {[%clk 0:00:35]} 1-0


[Site "https://www.chess.com"]

[Event "Titled Tuesday Blitz October 18 Late 2022"]
[White "Svicevic, Rastko"]
[Black "Mendez Fortes, Eduardo Jesus"]
[WhiteFideId "916315"]
[BlackFideId "3502376"]
[WhiteElo "2103"]
[BlackElo "2307"]
[Result "0-1"]
[Round "02"]
[TimeControl "180+1"]
[Date "2022.10.19"]
[WhiteClock "0:00:01"]
[BlackClock "0:00:18"]

1. d4 {[%clk 0:03:00]}  Nf6 {[%clk 0:02:59]} 2. Bg5 {[%clk 0:03:01]}  d5 {[%clk 0:02:59]} 3. Bxf6 {[%clk 0:03:01]}  exf6 {[%clk 0:03:00]} 4. e3 {[%clk 0:03:02]}  h5 {[%clk 0:02:57]} 5. g3 {[%clk 0:03:03]}  g6 {[%clk 0:02:57]} 6. h4 {[%clk 0:02:57]}  Bg7 {[%clk 0:02:57]} 7. Bg2 {[%clk 0:02:56]}  O-O {[%clk 0:02:31]} 8. Ne2 {[%clk 0:02:57]}  c6 {[%clk 0:02:30]} 9. O-O {[%clk 0:02:55]}  f5 {[%clk 0:02:30]} 10. Nd2 {[%clk 0:02:50]}  Nd7 {[%clk 0:02:30]} 11. b3 {[%clk 0:02:48]}  Nf6 {[%clk 0:02:30]} 12. c4 {[%clk 0:02:48]}  Ne4 {[%clk 0:02:28]} 13. Nf4 {[%clk 0:02:47]}  Nxd2 {[%clk 0:02:21]} 14. Qxd2 {[%clk 0:02:46]}  dxc4 {[%clk 0:02:22]} 15. bxc4 {[%clk 0:02:45]}  c5 {[%clk 0:02:23]} 16. Rad1 {[%clk 0:02:28]}  Qc7 {[%clk 0:02:22]} 17. d5 {[%clk 0:02:23]}  Qd6 {[%clk 0:02:21]} 18. Rb1 {[%clk 0:02:14]}  b6 {[%clk 0:02:21]} 19. Qc2 {[%clk 0:01:48]}  Bd7 {[%clk 0:02:18]} 20. Ne2 {[%clk 0:01:46]}  a6 {[%clk 0:02:16]} 21. Nc3 {[%clk 0:01:46]}  Rfb8 {[%clk 0:02:10]} 22. e4 {[%clk 0:01:16]}  Qe5 {[%clk 0:02:06]} 23. Rfc1 {[%clk 0:01:08]}  b5 {[%clk 0:02:05]} 24. cxb5 {[%clk 0:01:02]}  axb5 {[%clk 0:02:06]} 25. Ne2 {[%clk 0:01:02]}  fxe4 {[%clk 0:01:59]} 26. Qxc5 {[%clk 0:00:52]}  Rxa2 {[%clk 0:01:43]} 27. Nc3 {[%clk 0:00:51]}  Raa8 {[%clk 0:01:39]} 28. Nxe4 {[%clk 0:00:42]}  Rc8 {[%clk 0:01:32]} 29. Qe3 {[%clk 0:00:41]}  Rxc1+ {[%clk 0:01:29]} 30. Rxc1 {[%clk 0:00:42]}  b4 {[%clk 0:01:28]} 31. d6 {[%clk 0:00:39]}  Rb8 {[%clk 0:01:09]} 32. Qa7 {[%clk 0:00:35]}  Qb5 {[%clk 0:01:03]} 33. Nc5 {[%clk 0:00:33]}  Bf5 {[%clk 0:00:56]} 34. d7 {[%clk 0:00:27]}  b3 {[%clk 0:00:49]} 35. Ne4 {[%clk 0:00:23]}  b2 {[%clk 0:00:41]} 36. Rc8+ {[%clk 0:00:22]}  Rxc8 {[%clk 0:00:40]} 37. dxc8=Q+ {[%clk 0:00:20]}  Bxc8 {[%clk 0:00:41]} 38. Nd2 {[%clk 0:00:16]}  b1=Q+ {[%clk 0:00:32]} 39. Nxb1 {[%clk 0:00:15]}  Qxb1+ {[%clk 0:00:33]} 40. Kh2 {[%clk 0:00:16]}  Be6 {[%clk 0:00:32]} 41. Qe3 {[%clk 0:00:13]}  Qf5 {[%clk 0:00:32]} 42. Bf1 {[%clk 0:00:10]}  Be5 {[%clk 0:00:30]} 43. Bg2 {[%clk 0:00:07]}  Kg7 {[%clk 0:00:29]} 44. Bf1 {[%clk 0:00:06]}  Qf6 {[%clk 0:00:29]} 45. Kg1 {[%clk 0:00:05]}  Bd4 {[%clk 0:00:29]} 46. Qe2 {[%clk 0:00:04]}  Bc4 {[%clk 0:00:28]} 47. Qe1 {[%clk 0:00:02]}  Bd5 {[%clk 0:00:26]} 48. Qd2 {[%clk 0:00:02]}  Be4 {[%clk 0:00:20]} 49. Bh3 {[%clk 0:00:02]}  Bb6 {[%clk 0:00:19]} 50. Bg2 {[%clk 0:00:01]}  Bxg2 {[%clk 0:00:18]} 51. Kxg2 {[%clk 0:00:02]}  Qd4 {[%clk 0:00:18]} 52. Qe1 {[%clk 0:00:01]}  Qd5+ {[%clk 0:00:19]} 53. Kh2 {[%clk 0:00:01]}  Qf3 {[%clk 0:00:18]} 0-1


[Site "https://www.chess.com"]

[Event "Titled Tuesday Blitz October 18 Late 2022"]
[White "Tan, Ralph"]
[Black "Jimenez Fernandez, Rebeca"]
[WhiteFideId "30966590"]
[BlackFideId "32070934"]
[WhiteElo "2059"]
[BlackElo "1946"]
[Result "1-0"]
[Round "02"]
[TimeControl "180+1"]
[Date "2022.10.19"]
[WhiteClock "0:00:59"]
[BlackClock "0:00:04"]

1. Nf3 {[%clk 0:03:00]}  d5 {[%clk 0:02:57]} 2. g3 {[%clk 0:03:00]}  Nf6 {[%clk 0:02:57]} 3. Bg2 {[%clk 0:03:01]}  e6 {[%clk 0:02:57]} 4. O-O {[%clk 0:03:01]}  Be7 {[%clk 0:02:58]} 5. d4 {[%clk 0:03:01]}  O-O {[%clk 0:02:58]} 6. c4 {[%clk 0:03:02]}  dxc4 {[%clk 0:02:58]} 7. Ne5 {[%clk 0:03:03]}  c5 {[%clk 0:02:57]} 8. dxc5 {[%clk 0:02:57]}  Qc7 {[%clk 0:02:58]} 9. Nxc4 {[%clk 0:02:56]}  Qxc5 {[%clk 0:02:51]} 10. Qb3 {[%clk 0:02:51]}  Nc6 {[%clk 0:02:50]} 11. Be3 {[%clk 0:02:50]}  Nd4 {[%clk 0:02:49]} 12. Bxd4 {[%clk 0:02:49]}  Qxd4 {[%clk 0:02:50]} 13. Rd1 {[%clk 0:02:48]}  Qc5 {[%clk 0:02:45]} 14. Nc3 {[%clk 0:02:48]}  Bd7 {[%clk 0:02:39]} 15. Rac1 {[%clk 0:02:40]}  Bc6 {[%clk 0:02:34]} 16. e4 {[%clk 0:02:32]}  a5 {[%clk 0:02:25]} 17. Ne3 {[%clk 0:02:32]}  a4 {[%clk 0:02:17]} 18. Qc4 {[%clk 0:02:27]}  Qb6 {[%clk 0:02:10]} 19. e5 {[%clk 0:02:19]}  Ne8 {[%clk 0:01:39]} 20. Bxc6 {[%clk 0:02:15]}  bxc6 {[%clk 0:01:40]} 21. Nxa4 {[%clk 0:02:15]}  Qb5 {[%clk 0:01:31]} 22. b3 {[%clk 0:02:14]}  Bg5 {[%clk 0:01:11]} 23. f4 {[%clk 0:02:11]}  Bd8 {[%clk 0:01:00]} 24. Qxc6 {[%clk 0:02:09]}  Qe2 {[%clk 0:00:56]} 25. Qxa8 {[%clk 0:01:58]}  Qxe3+ {[%clk 0:00:56]} 26. Kh1 {[%clk 0:01:58]}  Nc7 {[%clk 0:00:44]} 27. Qg2 {[%clk 0:01:56]}  Nd5 {[%clk 0:00:42]} 28. Re1 {[%clk 0:01:46]}  Qa7 {[%clk 0:00:36]} 29. Qf3 {[%clk 0:01:39]}  Ba5 {[%clk 0:00:28]} 30. Red1 {[%clk 0:01:37]}  Ne3 {[%clk 0:00:21]} 31. Rd3 {[%clk 0:01:33]}  Nf5 {[%clk 0:00:20]} 32. Kg2 {[%clk 0:01:29]}  Nd4 {[%clk 0:00:17]} 33. Qe4 {[%clk 0:01:27]}  Nf5 {[%clk 0:00:11]} 34. Rc5 {[%clk 0:01:13]}  Bb6 {[%clk 0:00:10]} 35. Nxb6 {[%clk 0:01:11]}  Qxb6 {[%clk 0:00:10]} 36. Rc2 {[%clk 0:01:11]}  Qa7 {[%clk 0:00:07]} 37. a4 {[%clk 0:01:10]}  Rb8 {[%clk 0:00:07]} 38. Rdc3 {[%clk 0:01:04]}  h6 {[%clk 0:00:07]} 39. g4 {[%clk 0:01:01]}  Nh4+ {[%clk 0:00:05]} 40. Kh3 {[%clk 0:01:00]}  Ng6 {[%clk 0:00:05]} 41. f5 {[%clk 0:01:00]}  exf5 {[%clk 0:00:05]} 42. gxf5 {[%clk 0:01:00]}  Qd7 {[%clk 0:00:05]} 43. e6 {[%clk 0:01:00]}  fxe6 {[%clk 0:00:05]} 44. fxg6 {[%clk 0:01:00]}  e5+ {[%clk 0:00:05]} 45. Qg4 {[%clk 0:01:00]}  Qd5 {[%clk 0:00:04]} 46. Rc8+ {[%clk 0:00:59]} 1-0


[Site "https://www.chess.com"]

[Event "Titled Tuesday Blitz October 18 Late 2022"]
[White "Ter-Sahakyan, Samvel"]
[Black "Radovic, Janko"]
[WhiteFideId "13302531"]
[BlackFideId "911518"]
[WhiteElo "2604"]
[BlackElo "2318"]
[Result "1-0"]
[Round "02"]
[TimeControl "180+1"]
[Date "2022.10.18"]
[WhiteClock "0:00:24"]
[BlackClock "0:00:50"]

1. Nf3 {[%clk 0:03:00]}  d5 {[%clk 0:02:59]} 2. d4 {[%clk 0:02:57]}  Nf6 {[%clk 0:02:59]} 3. c4 {[%clk 0:02:57]}  e6 {[%clk 0:02:59]} 4. Nc3 {[%clk 0:02:57]}  Be7 {[%clk 0:03:00]} 5. Bf4 {[%clk 0:02:54]}  O-O {[%clk 0:03:00]} 6. e3 {[%clk 0:02:54]}  c5 {[%clk 0:03:00]} 7. dxc5 {[%clk 0:02:53]}  Bxc5 {[%clk 0:03:00]} 8. Qc2 {[%clk 0:02:54]}  Nc6 {[%clk 0:03:00]} 9. Rd1 {[%clk 0:02:54]}  Re8 {[%clk 0:02:55]} 10. Bg5 {[%clk 0:02:39]}  Be7 {[%clk 0:02:53]} 11. a3 {[%clk 0:02:33]}  Qa5 {[%clk 0:02:50]} 12. Be2 {[%clk 0:02:17]}  dxc4 {[%clk 0:02:40]} 13. Bxc4 {[%clk 0:02:13]}  a6 {[%clk 0:02:36]} 14. O-O {[%clk 0:02:12]}  b5 {[%clk 0:02:28]} 15. Ba2 {[%clk 0:02:12]}  Bb7 {[%clk 0:02:18]} 16. Bb1 {[%clk 0:02:04]}  g6 {[%clk 0:02:08]} 17. Bxf6 {[%clk 0:02:04]}  Bxf6 {[%clk 0:02:07]} 18. Rd7 {[%clk 0:02:04]}  Rab8 {[%clk 0:01:55]} 19. Ne4 {[%clk 0:02:03]}  Be7 {[%clk 0:01:44]} 20. Rxb7 {[%clk 0:02:00]}  Rxb7 {[%clk 0:01:35]} 21. Qxc6 {[%clk 0:02:00]}  Rbb8 {[%clk 0:01:36]} 22. Rc1 {[%clk 0:01:34]}  Rec8 {[%clk 0:01:29]} 23. Qxc8+ {[%clk 0:01:33]}  Rxc8 {[%clk 0:01:30]} 24. Rxc8+ {[%clk 0:01:33]}  Kg7 {[%clk 0:01:31]} 25. Rc2 {[%clk 0:00:54]}  b4 {[%clk 0:01:28]} 26. axb4 {[%clk 0:00:52]}  Qxb4 {[%clk 0:01:22]} 27. Ned2 {[%clk 0:00:46]}  Bf6 {[%clk 0:01:20]} 28. b3 {[%clk 0:00:41]}  g5 {[%clk 0:01:14]} 29. h3 {[%clk 0:00:41]}  h5 {[%clk 0:01:13]} 30. Rc4 {[%clk 0:00:39]}  Qa5 {[%clk 0:01:11]} 31. g4 {[%clk 0:00:38]}  hxg4 {[%clk 0:01:03]} 32. hxg4 {[%clk 0:00:39]}  Qa1 {[%clk 0:01:04]} 33. Kg2 {[%clk 0:00:38]}  Qb2 {[%clk 0:01:04]} 34. Bc2 {[%clk 0:00:38]}  a5 {[%clk 0:01:04]} 35. Ne4 {[%clk 0:00:37]}  Kg6 {[%clk 0:01:00]} 36. Nexg5+ {[%clk 0:00:35]}  Kg7 {[%clk 0:01:00]} 37. Ne4 {[%clk 0:00:35]}  Be7 {[%clk 0:01:00]} 38. g5 {[%clk 0:00:35]}  Bb4 {[%clk 0:00:59]} 39. Rc7 {[%clk 0:00:30]}  Qc1 {[%clk 0:00:56]} 40. g6 {[%clk 0:00:25]}  Kxg6 {[%clk 0:00:52]} 41. Neg5+ {[%clk 0:00:25]}  Kh5 {[%clk 0:00:50]} 42. Bg6+ {[%clk 0:00:24]} 1-0


[Site "https://www.chess.com"]

[Event "Titled Tuesday Blitz October 18 Late 2022"]
[White "Thomforde-Toates, Noah"]
[Black "Arnold, Ken"]
[WhiteFideId "30951992"]
[BlackFideId "2056836"]
[WhiteElo "2645"]
[BlackElo "2352"]
[Result "1-0"]
[Round "02"]
[TimeControl "180+1"]
[Date "2022.10.19"]
[WhiteClock "0:00:16"]
[BlackClock "0:00:11"]

1. d4 {[%clk 0:03:00]}  d5 {[%clk 0:02:58]} 2. Nc3 {[%clk 0:03:01]}  Nf6 {[%clk 0:02:58]} 3. Bf4 {[%clk 0:03:01]}  c6 {[%clk 0:02:58]} 4. e3 {[%clk 0:03:02]}  Bf5 {[%clk 0:02:57]} 5. f3 {[%clk 0:03:01]}  e6 {[%clk 0:02:57]} 6. g4 {[%clk 0:03:01]}  Bg6 {[%clk 0:02:57]} 7. h4 {[%clk 0:03:01]}  h5 {[%clk 0:02:55]} 8. g5 {[%clk 0:03:01]}  Ng8 {[%clk 0:02:52]} 9. Bd3 {[%clk 0:03:01]}  Bd6 {[%clk 0:02:51]} 10. Nh3 {[%clk 0:02:58]}  Ne7 {[%clk 0:02:49]} 11. Qe2 {[%clk 0:02:52]}  Qc7 {[%clk 0:02:48]} 12. Qh2 {[%clk 0:02:45]}  Bxf4 {[%clk 0:02:41]} 13. Nxf4 {[%clk 0:02:46]}  Bxd3 {[%clk 0:02:36]} 14. cxd3 {[%clk 0:02:44]}  Nf5 {[%clk 0:02:32]} 15. g6 {[%clk 0:02:01]}  Nxe3 {[%clk 0:02:17]} 16. gxf7+ {[%clk 0:02:01]}  Qxf7 {[%clk 0:02:16]} 17. Kd2 {[%clk 0:01:58]}  Nf5 {[%clk 0:02:04]} 18. Nxe6 {[%clk 0:01:56]}  Na6 {[%clk 0:01:28]} 19. Rhe1 {[%clk 0:01:14]}  Kd7 {[%clk 0:01:26]} 20. Qh3 {[%clk 0:00:56]}  g6 {[%clk 0:01:10]} 21. Re5 {[%clk 0:00:49]}  Rae8 {[%clk 0:01:05]} 22. Rae1 {[%clk 0:00:49]}  Rxe6 {[%clk 0:00:43]} 23. Rxe6 {[%clk 0:00:47]}  Qxe6 {[%clk 0:00:43]} 24. Rxe6 {[%clk 0:00:47]}  Kxe6 {[%clk 0:00:44]} 25. Qg2 {[%clk 0:00:38]}  Kf7 {[%clk 0:00:42]} 26. Qg5 {[%clk 0:00:34]}  Re8 {[%clk 0:00:40]} 27. Ne2 {[%clk 0:00:32]}  Re6 {[%clk 0:00:30]} 28. Nf4 {[%clk 0:00:29]}  Rf6 {[%clk 0:00:30]} 29. Nxg6 {[%clk 0:00:28]}  Nxd4 {[%clk 0:00:20]} 30. Nh8+ {[%clk 0:00:20]}  Ke6 {[%clk 0:00:19]} 31. Qg8+ {[%clk 0:00:20]}  Kd6 {[%clk 0:00:18]} 32. Nf7+ {[%clk 0:00:19]}  Kc5 {[%clk 0:00:16]} 33. Qf8+ {[%clk 0:00:18]}  Kb6 {[%clk 0:00:16]} 34. Qd8+ {[%clk 0:00:18]}  Nc7 {[%clk 0:00:16]} 35. Qxf6 {[%clk 0:00:19]}  Nde6 {[%clk 0:00:13]} 36. Ng5 {[%clk 0:00:19]}  Nc5 {[%clk 0:00:12]} 37. Qd4 {[%clk 0:00:19]}  Nb5 {[%clk 0:00:11]} 38. Qg1 {[%clk 0:00:18]}  d4 {[%clk 0:00:11]} 39. Ne4 {[%clk 0:00:17]}  Ne6 {[%clk 0:00:11]} 40. b4 {[%clk 0:00:17]}  Nf4 {[%clk 0:00:11]} 41. Qg5 {[%clk 0:00:17]}  Nd5 {[%clk 0:00:11]} 42. Qd8+ {[%clk 0:00:16]}  Ka6 {[%clk 0:00:11]} 43. Qa5# {[%clk 0:00:16]} 1-0


[Site "https://www.chess.com"]

[Event "Titled Tuesday Blitz October 18 Late 2022"]
[White "Titus, Andrew"]
[Black "Sabar, Ethmane Daouda"]
[WhiteFideId "2059770"]
[BlackFideId "19600097"]
[WhiteElo "2061"]
[BlackElo "1950"]
[Result "0-1"]
[Round "02"]
[TimeControl "180+1"]
[Date "2022.10.19"]
[WhiteClock "0:00:12"]
[BlackClock "0:00:51"]

1. e4 {[%clk 0:03:00]}  c5 {[%clk 0:02:55]} 2. Nf3 {[%clk 0:02:56]}  Nc6 {[%clk 0:02:55]} 3. d4 {[%clk 0:02:51]}  cxd4 {[%clk 0:02:56]} 4. Nxd4 {[%clk 0:02:52]}  e5 {[%clk 0:02:56]} 5. Nb5 {[%clk 0:02:47]}  a6 {[%clk 0:02:55]} 6. Nd6+ {[%clk 0:02:45]}  Bxd6 {[%clk 0:02:56]} 7. Qxd6 {[%clk 0:02:45]}  Qf6 {[%clk 0:02:56]} 8. Qd1 {[%clk 0:02:39]}  Qg6 {[%clk 0:02:56]} 9. Nc3 {[%clk 0:02:37]}  Nge7 {[%clk 0:02:56]} 10. Be3 {[%clk 0:02:34]}  d5 {[%clk 0:02:55]} 11. exd5 {[%clk 0:02:33]}  Nb4 {[%clk 0:02:56]} 12. Rc1 {[%clk 0:02:28]}  Bf5 {[%clk 0:02:56]} 13. d6 {[%clk 0:02:22]}  Nec6 {[%clk 0:02:41]} 14. Nd5 {[%clk 0:02:13]}  O-O {[%clk 0:01:44]} 15. Nxb4 {[%clk 0:01:10]}  Nxb4 {[%clk 0:01:45]} 16. Be2 {[%clk 0:01:01]}  Nxc2+ {[%clk 0:01:35]} 17. Kf1 {[%clk 0:00:51]}  Nxe3+ {[%clk 0:01:26]} 18. fxe3 {[%clk 0:00:52]}  Rfd8 {[%clk 0:01:15]} 19. Qb3 {[%clk 0:00:26]}  Rxd6 {[%clk 0:01:03]} 20. Qxb7 {[%clk 0:00:25]}  Rad8 {[%clk 0:01:01]} 21. Qe7 {[%clk 0:00:20]}  Be4 {[%clk 0:00:52]} 22. Qxd6 {[%clk 0:00:12]}  Qxd6 {[%clk 0:00:51]} 0-1


[Site "https://www.chess.com"]

[Event "Titled Tuesday Blitz October 18 Late 2022"]
[White "Tsyhanchuk, Stanislav"]
[Black "Tsaruk, Maksim"]
[WhiteFideId "13505130"]
[BlackFideId "13511173"]
[WhiteElo "2173"]
[BlackElo "2273"]
[Result "0-1"]
[Round "02"]
[TimeControl "180+1"]
[Date "2022.10.19"]
[WhiteClock "0:00:02"]
[BlackClock "0:00:06"]

1. e4 {[%clk 0:02:46]}  c5 {[%clk 0:02:56]} 2. Nf3 {[%clk 0:02:46]}  e6 {[%clk 0:02:57]} 3. d4 {[%clk 0:02:46]}  cxd4 {[%clk 0:02:57]} 4. Nxd4 {[%clk 0:02:47]}  Nc6 {[%clk 0:02:57]} 5. Nc3 {[%clk 0:02:47]}  a6 {[%clk 0:02:56]} 6. Nxc6 {[%clk 0:02:44]}  bxc6 {[%clk 0:02:54]} 7. Bd3 {[%clk 0:02:45]}  d5 {[%clk 0:02:52]} 8. O-O {[%clk 0:02:45]}  Bd6 {[%clk 0:02:50]} 9. f4 {[%clk 0:02:39]}  Ne7 {[%clk 0:02:46]} 10. Kh1 {[%clk 0:02:37]}  O-O {[%clk 0:02:28]} 11. e5 {[%clk 0:02:36]}  Bc7 {[%clk 0:02:28]} 12. Qh5 {[%clk 0:02:32]}  g6 {[%clk 0:02:26]} 13. Qh6 {[%clk 0:02:22]}  f6 {[%clk 0:02:17]} 14. Bd2 {[%clk 0:01:39]}  a5 {[%clk 0:01:55]} 15. exf6 {[%clk 0:01:32]}  Rxf6 {[%clk 0:01:55]} 16. Na4 {[%clk 0:01:25]}  Nf5 {[%clk 0:01:43]} 17. Bxf5 {[%clk 0:01:22]}  gxf5 {[%clk 0:01:44]} 18. Qh5 {[%clk 0:01:11]}  Rg6 {[%clk 0:01:40]} 19. Nc5 {[%clk 0:01:06]}  Qe7 {[%clk 0:01:35]} 20. Nd3 {[%clk 0:01:02]}  Ba6 {[%clk 0:01:34]} 21. Rf3 {[%clk 0:01:01]}  Bxd3 {[%clk 0:00:52]} 22. Rxd3 {[%clk 0:01:02]}  Qg7 {[%clk 0:00:49]} 23. Qf3 {[%clk 0:00:50]}  Qxb2 {[%clk 0:00:41]} 24. Re1 {[%clk 0:00:41]}  Bd6 {[%clk 0:00:23]} 25. h4 {[%clk 0:00:34]}  Re8 {[%clk 0:00:19]} 26. h5 {[%clk 0:00:33]}  Rg4 {[%clk 0:00:19]} 27. Qh3 {[%clk 0:00:17]}  Qxa2 {[%clk 0:00:18]} 28. Rg3 {[%clk 0:00:17]}  Qxc2 {[%clk 0:00:15]} 29. Bc3 {[%clk 0:00:11]}  Kf7 {[%clk 0:00:12]} 30. Rxg4 {[%clk 0:00:07]}  fxg4 {[%clk 0:00:13]} 31. Qe3 {[%clk 0:00:07]}  c5 {[%clk 0:00:08]} 32. f5 {[%clk 0:00:07]}  Qxf5 {[%clk 0:00:05]} 33. Qe2 {[%clk 0:00:03]}  Qxh5+ {[%clk 0:00:05]} 34. Kg1 {[%clk 0:00:04]}  Qh2+ {[%clk 0:00:06]} 35. Kf2 {[%clk 0:00:04]}  Bg3+ {[%clk 0:00:06]} 36. Ke3 {[%clk 0:00:04]}  Bxe1 {[%clk 0:00:06]} 37. Qxe1 {[%clk 0:00:04]}  d4+ {[%clk 0:00:07]} 38. Ke4 {[%clk 0:00:05]}  dxc3 {[%clk 0:00:05]} 39. Qf2+ {[%clk 0:00:05]}  Kg8 {[%clk 0:00:06]} 40. Qxc5 {[%clk 0:00:05]}  Qh6 {[%clk 0:00:06]} 41. Qc6 {[%clk 0:00:02]}  Qg6+ {[%clk 0:00:07]} 42. Ke3 {[%clk 0:00:02]}  c2 {[%clk 0:00:06]} 43. g3 {[%clk 0:00:03]}  e5 {[%clk 0:00:07]} 44. Qd5+ {[%clk 0:00:02]}  Qf7 {[%clk 0:00:06]} 45. Qh1 {[%clk 0:00:03]}  Rc8 {[%clk 0:00:05]} 46. Qc1 {[%clk 0:00:02]}  Qe6 {[%clk 0:00:06]} 47. Ke4 {[%clk 0:00:02]}  Rc4+ {[%clk 0:00:05]} 48. Kd3 {[%clk 0:00:02]}  Qd5+ {[%clk 0:00:05]} 49. Ke2 {[%clk 0:00:02]}  Qd1+ {[%clk 0:00:06]} 0-1


[Site "https://www.chess.com"]

[Event "Titled Tuesday Blitz October 18 Late 2022"]
[White "Urbina Perez, Juan Antonio"]
[Black "Girel, Joseph"]
[WhiteFideId "2217368"]
[BlackFideId "36033561"]
[WhiteElo "2525"]
[BlackElo "2774"]
[Result "0-1"]
[Round "02"]
[TimeControl "180+1"]
[Date "2022.10.19"]
[WhiteClock "0:00:15"]
[BlackClock "0:01:15"]

1. d4 {[%clk 0:03:00]}  Nf6 {[%clk 0:02:56]} 2. c4 {[%clk 0:02:58]}  c5 {[%clk 0:02:56]} 3. d5 {[%clk 0:02:57]}  b5 {[%clk 0:02:56]} 4. cxb5 {[%clk 0:02:57]}  a6 {[%clk 0:02:53]} 5. bxa6 {[%clk 0:02:58]}  e6 {[%clk 0:02:53]} 6. Nc3 {[%clk 0:02:57]}  exd5 {[%clk 0:02:49]} 7. Nxd5 {[%clk 0:02:52]}  Be7 {[%clk 0:02:50]} 8. Nf3 {[%clk 0:02:42]}  Bxa6 {[%clk 0:02:36]} 9. Nxf6+ {[%clk 0:02:30]}  Bxf6 {[%clk 0:02:34]} 10. Qd5 {[%clk 0:02:29]}  Nc6 {[%clk 0:02:29]} 11. Qxc5 {[%clk 0:02:19]}  Rc8 {[%clk 0:02:23]} 12. Qe3+ {[%clk 0:02:16]}  Ne7 {[%clk 0:02:20]} 13. g3 {[%clk 0:02:07]}  O-O {[%clk 0:02:14]} 14. Bh3 {[%clk 0:02:05]}  Nd5 {[%clk 0:02:09]} 15. Qd2 {[%clk 0:01:42]}  Nc3 {[%clk 0:02:03]} 16. O-O {[%clk 0:01:34]}  Nxe2+ {[%clk 0:01:58]} 17. Kh1 {[%clk 0:01:34]}  Qb6 {[%clk 0:01:50]} 18. Ng1 {[%clk 0:01:06]}  Nd4 {[%clk 0:01:41]} 19. Rd1 {[%clk 0:00:55]}  Rc2 {[%clk 0:01:39]} 20. Qf4 {[%clk 0:00:50]}  Bb7+ {[%clk 0:01:36]} 21. Bg2 {[%clk 0:00:49]}  g5 {[%clk 0:01:20]} 22. Qe3 {[%clk 0:00:28]}  Re2 {[%clk 0:01:15]} 23. Qd3 {[%clk 0:00:19]}  Rxf2 {[%clk 0:01:15]} 24. Rd2 {[%clk 0:00:15]}  Bxg2# {[%clk 0:01:15]} 0-1


[Site "https://www.chess.com"]

[Event "Titled Tuesday Blitz October 18 Late 2022"]
[White "Vargas, Mauricio"]
[Black "Melikhov, Evgeny V."]
[WhiteFideId "4404572"]
[BlackFideId "4122046"]
[WhiteElo "2025"]
[BlackElo "2169"]
[Result "0-1"]
[Round "02"]
[TimeControl "180+1"]
[Date "2022.10.19"]
[WhiteClock "0:02:08"]
[BlackClock "0:01:11"]

1. e4 {[%clk 0:03:00]}  c5 {[%clk 0:02:59]} 2. Nc3 {[%clk 0:02:59]}  Nc6 {[%clk 0:02:58]} 3. f4 {[%clk 0:03:00]}  g6 {[%clk 0:02:58]} 4. Nf3 {[%clk 0:03:01]}  Bg7 {[%clk 0:02:58]} 5. Bb5 {[%clk 0:03:01]}  Nd4 {[%clk 0:02:57]} 6. Bf1 {[%clk 0:03:00]}  e6 {[%clk 0:02:55]} 7. d3 {[%clk 0:02:59]}  Ne7 {[%clk 0:02:54]} 8. g3 {[%clk 0:02:57]}  Nxf3+ {[%clk 0:02:44]} 9. Qxf3 {[%clk 0:02:57]}  Nc6 {[%clk 0:02:44]} 10. Ne2 {[%clk 0:02:54]}  d6 {[%clk 0:02:42]} 11. c3 {[%clk 0:02:54]}  O-O {[%clk 0:02:41]} 12. Bg2 {[%clk 0:02:53]}  Rb8 {[%clk 0:02:40]} 13. Ng1 {[%clk 0:02:53]}  b5 {[%clk 0:02:39]} 14. Qf2 {[%clk 0:02:52]}  b4 {[%clk 0:02:35]} 15. Bd2 {[%clk 0:02:51]}  bxc3 {[%clk 0:02:33]} 16. bxc3 {[%clk 0:02:52]}  Rb2 {[%clk 0:02:27]} 17. Qe3 {[%clk 0:02:49]}  Qa5 {[%clk 0:02:22]} 18. Ne2 {[%clk 0:02:41]}  Rxa2 {[%clk 0:02:13]} 19. O-O {[%clk 0:02:40]}  Rxa1 {[%clk 0:02:11]} 20. c4 {[%clk 0:02:37]}  Rxf1+ {[%clk 0:02:09]} 21. Bxf1 {[%clk 0:02:35]}  Qa1 {[%clk 0:02:04]} 22. g4 {[%clk 0:02:27]}  Nd4 {[%clk 0:02:03]} 23. Ng3 {[%clk 0:02:26]}  Bd7 {[%clk 0:01:52]} 24. e5 {[%clk 0:02:25]}  dxe5 {[%clk 0:01:44]} 25. fxe5 {[%clk 0:02:24]}  Bxe5 {[%clk 0:01:43]} 26. Qxe5 {[%clk 0:02:20]}  Nf3+ {[%clk 0:01:43]} 27. Kg2 {[%clk 0:02:17]}  Nxe5 {[%clk 0:01:40]} 28. Bh6 {[%clk 0:02:16]}  Bc6+ {[%clk 0:01:39]} 29. Kh3 {[%clk 0:02:10]}  Rd8 {[%clk 0:01:30]} 30. Bg5 {[%clk 0:02:10]}  Rxd3 {[%clk 0:01:19]} 31. Bf6 {[%clk 0:02:10]}  Qxf1+ {[%clk 0:01:15]} 32. Kh4 {[%clk 0:02:09]}  Qxf6+ {[%clk 0:01:14]} 33. g5 {[%clk 0:02:09]}  Qf4+ {[%clk 0:01:11]} 34. Kh3 {[%clk 0:02:08]}  Qg4# {[%clk 0:01:11]} 0-1


[Site "https://www.chess.com"]